bitfinex-derivatives/quotes_SOLF0:USTF0_20251023
["timestamp","ask_amount","ask_price","bid_price","bid_amount"]
[1761188906259,2.2862984,182.59,182.53,2.74]
[1761188906465,4.12244255,182.59,182.53,2.74]
[1761188908572,2.92,182.58,182.53,2.74]
[1761188910373,4.25244255,182.59,182.53,2.74]
[1761188912972,2.92,182.57,182.53,2.74]
[1761188913674,1.33244255,182.58,182.53,2.74]
[1761188913879,2.92,182.59,182.53,2.74]
[1761188920384,2.92,182.59,182.54,2.73]
[1761188922086,1.33244255,182.61,182.54,2.73]
[1761188922885,2.92,182.62,182.56,2.73]
[1761188924284,1.33244255,182.61,182.56,2.73]
[1761188924480,2.92,182.6,182.56,2.73]
[1761188925284,1.33244255,182.61,182.56,2.73]
[1761188925489,2.92,182.6,182.56,2.73]
[1761188925688,1.33244255,182.59,182.56,2.73]
[1761188928188,2.92,182.63,182.56,2.73]
[1761188928386,1.33244255,182.61,182.56,2.73]
[1761188929094,4.25244255,182.63,182.56,2.73]
[1761188929281,46.77244255,182.64,182.58,2.73]
[1761188931388,1.33244255,182.62,182.58,2.73]
[1761188932894,4.25244255,182.6,182.52,2.73]
[1761188934892,1.33244255,182.58,182.52,2.73]
[1761188938996,1.33244255,182.58,182.54,2.75]
[1761188939299,1.33244255,182.58,182.55,4.99137661]
[1761188939490,1.33244255,182.58,182.56,2.75]
[1761188940395,1.33244255,182.6,182.58,2.75]
[1761188940990,2.71,182.63,182.58,2.75]
[1761188941191,1.33244255,182.6,182.58,2.75]
[1761188941898,4.04244255,182.6,182.58,2.75]
[1761188942094,1.33244255,182.6,182.58,2.75]
[1761188942697,1.33244255,182.59,182.58,2.75]
[1761188942897,1.33244255,182.59,182.58,7.74590502]
[1761188943598,2.71,182.63,182.58,7.74590502]
[1761188943797,1.33244255,182.6,182.59,4.9982115]
[1761188944199,1.33244255,182.6,182.58,2.75]
[1761188944401,2.71,182.63,182.59,7.78342334]
[1761188944586,1.33244255,182.6,182.59,2.75]
[1761188944792,1.33244255,182.6,182.59,5.03342334]
[1761188945089,1.33244255,182.6,182.56,2.75]
[1761188945090,4.04244255,182.6,182.56,2.75]
[1761188945298,1.33244255,182.58,182.57,7.78429082]
[1761188946985,2.71,182.6,182.57,7.78429082]
[1761188947190,4.04244255,182.6,182.58,7.78429082]
[1761188947488,4.04244255,182.6,182.58,2.75]
[1761188949195,1.33244255,182.6,182.58,2.75]
[1761188950900,4.04244255,182.6,182.58,2.75]
[1761188955106,2.71,182.6,182.58,2.75]
[1761188956408,4.04244255,182.62,182.59,7.78731767]
[1761188956608,2.71,182.61,182.59,2.75]
[1761188958503,2.71,182.61,182.52,7.17203707]
[1761188958806,2.71,182.61,182.54,2.75]
[1761188959004,7.83425278,182.64,182.56,2.75]
[1761188959200,7.83425278,182.64,182.52,7.17203707]
[1761188959201,7.83425278,182.64,182.58,2.75]
[1761188959397,2.71,182.64,182.6,2.75]
[1761188961505,2.71,182.64,182.61,5.0360665]
[1761188961710,2.71,182.64,182.61,2.75]
[1761188962407,5.12425278,182.66,182.61,3.85]
[1761188962607,2.71,182.69,182.63,2.75]
[1761188962812,2.71,182.68,182.64,5.03370846]
[1761188963003,2.71,182.66,182.63,2.75]
[1761188964617,5.12425278,182.67,182.55,5.09335448]
[1761188964618,5.12425278,182.67,182.65,2.69]
[1761188964814,2.75,182.69,182.65,2.69]
[1761188965915,2.75,182.69,182.6,2.69]
[1761188966120,2.75,182.68,182.62,2.69]
[1761188966318,2.75,182.68,182.64,2.69]
[1761188974330,2.75,182.68,182.6,2.92]
[1761188974627,2.75,182.68,182.62,2.92]
[1761188974824,2.75,182.68,182.59,2.92]
[1761188975022,2.94,182.66,182.6,5.02326256]
[1761188975327,2.94,182.65,182.56,2.92]
[1761188975528,2.94,182.65,182.57,5.02455543]
[1761188975830,2.94,182.65,182.58,5.02455543]
[1761188976020,2.94,182.65,182.57,2.92]
[1761188976214,2.94,182.63,182.53,2.92]
[1761188976418,2.94,182.61,182.54,7.94735879]
[1761188976612,2.94,182.61,182.54,2.92]
[1761188977021,2.94,182.6,182.54,2.92]
[1761188977215,2.94,182.57,182.51,2.92]
[1761188977523,2.94,182.57,182.52,5.02846733]
[1761188977729,2.94,182.57,182.44,2.92]
[1761188977730,2.94,182.54,182.44,2.92]
[1761188978027,2.94,182.54,182.43,2.07868259]
[1761188978028,2.94,182.54,182.45,7.95097117]
[1761188978232,2.94,182.54,182.46,5.03097117]
[1761188978420,2.94,182.54,182.47,5.03097117]
[1761188978727,2.94,182.54,182.45,2.92]
[1761188978926,2.94,182.54,182.46,7.94977045]
[1761188979127,2.94,182.54,182.46,2.92]
[1761188981729,2.94,182.51,182.46,2.92]
[1761188982227,2.94,182.51,182.43,2.92]
[1761188982422,2.94,182.51,182.44,7.94137167]
[1761188982628,2.94,182.51,182.45,5.02102245]
[1761188982826,2.94,182.51,182.44,2.92]
[1761188983025,2.94,182.51,182.45,5.02102245]
[1761188983226,2.94,182.51,182.44,2.92]
[1761188984732,2.94,182.51,182.45,7.93665005]
[1761188985031,2.94,182.51,182.45,2.92]
[1761188985428,18.51868259,182.61,182.45,2.92]
[1761188985429,2.94,182.53,182.45,2.92]
[1761188985627,2.94,182.5,182.45,2.92]
[1761188986835,2.94,182.54,182.45,2.92]
[1761188987735,2.94,182.54,182.41,2.07868259]
[1761188987736,2.94,182.54,182.47,2.92]
[1761189004043,50.54425278,182.6,182.47,2.92]
[1761189004044,2.9,182.59,182.47,2.92]
[1761189004345,2.9,182.56,182.47,2.92]
[1761189009944,2.9,182.56,182.47,4.99868259]
[1761189010141,2.9,182.59,182.48,2.78]
[1761189011243,2.9,182.59,182.5,2.78]
[1761189016644,1.33136185,182.56,182.5,2.78]
[1761189017155,1.33136185,182.54,182.5,2.78]
[1761189017460,4.23136185,182.54,182.5,2.78]
[1761189018346,4.23136185,182.54,182.52,2.78]
[1761189021140,2.9,182.53,182.47,2.78]
[1761189021341,5.12425278,182.56,182.46,8.0]
[1761189021342,2.9,182.51,182.48,7.78456771]
[1761189021540,2.9,182.51,182.49,5.00456771]
[1761189021855,2.9,182.51,182.5,5.00456771]
[1761189024547,2.9,182.51,182.44,2.82]
[1761189024748,4.27136185,182.48,182.45,7.82677981]
[1761189024948,4.27136185,182.48,182.46,5.00677981]
[1761189025149,4.27136185,182.48,182.47,5.00677981]
[1761189026252,1.33136185,182.48,182.47,5.00677981]
[1761189031359,1.33136185,182.51,182.48,2.82]
[1761189031657,1.33136185,182.51,182.43,1.33136185]
[1761189031658,1.33136185,182.51,182.49,7.82411834]
[1761189031861,1.33136185,182.51,182.49,2.82]
[1761189032860,4.29136185,182.51,182.49,2.82]
[1761189034466,1.33136185,182.51,182.49,2.82]
[1761189034667,2.96,182.54,182.51,2.82]
[1761189041468,2.96,182.52,182.48,2.82]
[1761189041663,2.96,182.52,182.49,5.0047357]
[1761189041980,2.96,182.52,182.5,5.0047357]
[1761189042181,2.96,182.52,182.48,2.82]
[1761189042477,2.96,182.52,182.49,7.82459339]
[1761189042677,2.96,182.52,182.5,5.00459339]
[1761189042877,2.96,182.52,182.49,2.82]
[1761189043071,2.96,182.52,182.5,5.00473505]
[1761189043269,2.96,182.52,182.49,2.82]
[1761189043469,2.96,182.52,182.5,5.00473119]
[1761189043669,2.96,182.52,182.45,2.82]
[1761189043869,2.96,182.52,182.46,7.82473768]
[1761189044074,2.96,182.52,182.48,2.82]
[1761189044274,2.96,182.52,182.49,5.00473768]
[1761189044578,2.96,182.52,182.5,5.00473768]
[1761189044774,1.33136185,182.51,182.45,2.82]
[1761189045075,2.96,182.48,182.46,5.00503134]
[1761189045269,2.96,182.48,182.42,2.82]
[1761189045471,2.96,182.48,182.44,2.82]
[1761189045667,2.96,182.48,182.45,5.00681987]
[1761189045864,2.96,182.48,182.44,2.82]
[1761189046065,2.96,182.48,182.45,5.00715397]
[1761189046371,4.29136185,182.47,182.44,2.82]
[1761189046571,4.29136185,182.47,182.45,5.00621815]
[1761189046772,4.29136185,182.47,182.44,2.82]
[1761189047070,4.29136185,182.47,182.45,5.00613334]
[1761189047270,4.29136185,182.47,182.44,2.82]
[1761189047479,4.29136185,182.47,182.45,5.00509885]
[1761189047678,2.96,182.46,182.39,2.82]
[1761189047972,2.96,182.44,182.4,5.00551767]
[1761189048177,2.96,182.44,182.41,5.00551767]
[1761189048382,2.96,182.44,182.42,5.00551767]
[1761189048575,2.96,182.44,182.38,2.82]
[1761189048878,2.96,182.44,182.4,2.82]
[1761189049073,2.96,182.44,182.41,5.00488442]
[1761189049375,2.96,182.44,182.35,5.09335448]
[1761189049376,2.96,182.44,182.36,2.82]
[1761189049673,4.29136185,182.43,182.38,2.82]
[1761189049866,4.29136185,182.43,182.4,2.82]
[1761189050070,4.29136185,182.43,182.41,5.0030661]
[1761189050275,4.29136185,182.43,182.4,2.82]
[1761189050474,4.29136185,182.43,182.41,5.00159441]
[1761189050682,2.96,182.42,182.35,2.82]
[1761189050984,2.96,182.42,182.36,7.8220128]
[1761189051278,2.96,182.42,182.38,2.82]
[1761189051479,2.96,182.4,182.39,5.0020128]
[1761189051977,4.29136185,182.43,182.39,5.0020128]
[1761189052180,2.96,182.42,182.39,2.82]
[1761189053782,4.29136185,182.45,182.39,2.82]
[1761189055488,2.96,182.48,182.41,2.82]
[1761189062494,1.33136185,182.47,182.41,2.82]
[1761189062692,2.83,182.46,182.41,2.82]
[1761189063390,2.83,182.44,182.38,4.19136185]
[1761189063691,2.83,182.44,182.4,2.86]
[1761189064696,5.12425278,182.48,182.4,2.86]
[1761189064697,1.33136185,182.43,182.4,2.86]
[1761189064992,2.83,182.42,182.4,2.86]
[1761189066394,2.83,182.45,182.4,2.86]
[1761189067301,2.83,182.45,182.38,1.33136185]
[1761189067492,2.83,182.43,182.39,5.00773708]
[1761189067690,2.83,182.43,182.37,2.86]
[1761189067892,2.83,182.43,182.35,1.33136185]
[1761189067893,2.83,182.43,182.38,7.868661]
[1761189068088,2.83,182.43,182.38,2.86]
[1761189070498,2.83,182.43,182.38,4.19136185]
[1761189071196,2.83,182.43,182.39,2.86]
[1761189074002,6.45561463,182.48,182.43,2.86]
[1761189074003,5.12425278,182.48,182.43,2.86]
[1761189074307,2.83,182.5,182.47,2.86]
[1761189074607,2.83,182.5,182.46,1.33136185]
[1761189074906,2.83,182.5,182.46,4.19136185]
[1761189075202,2.83,182.5,182.46,1.33136185]
[1761189075405,2.83,182.5,182.47,2.86]
[1761189077305,2.83,182.52,182.48,4.19136185]
[1761189077600,5.12425278,182.55,182.5,4.19136185]
[1761189077807,10.20214094,182.6,182.52,4.19136185]
[1761189077808,2.83,182.56,182.52,4.19136185]
[1761189077999,2.83,182.58,182.53,2.86]
[1761189078199,2.83,182.58,182.54,1.33136185]
[1761189078400,7.95425278,182.6,182.56,4.19136185]
[1761189078597,2.83,182.6,182.56,4.19136185]
[1761189078901,2.83,182.6,182.56,2.86]
[1761189081906,30.2,182.62,182.56,2.86]
[1761189082308,33.03,182.62,182.56,2.86]
[1761189085003,30.2,182.62,182.56,2.86]
[1761189085710,33.06,182.62,182.56,2.86]
[1761189088712,2.71,182.61,182.56,2.86]
[1761189089911,2.71,182.61,182.51,2.96]
[1761189092124,30.2,182.62,182.54,2.96]
[1761189092309,32.91,182.62,182.54,2.96]
[1761189094014,2.71,182.61,182.54,2.96]
[1761189099221,30.2,182.62,182.55,2.96]
[1761189100021,2.71,182.67,182.55,2.96]
[1761189104223,2.71,182.64,182.55,2.96]
[1761189113734,2.07877023,182.6,182.52,2.96]
[1761189114033,2.71,182.59,182.52,2.96]
[1761189114423,2.71,182.62,182.52,2.96]
[1761189114624,2.71,182.62,182.54,2.96]
[1761189117335,2.71,182.62,182.55,7.94058247]
[1761189117530,2.71,182.62,182.55,2.96]
[1761189118339,2.71,182.62,182.56,4.98989105]
[1761189118536,2.71,182.62,182.56,2.82]
[1761189119233,2.71,182.62,182.57,4.99326218]
[1761189119437,2.71,182.62,182.57,2.82]
[1761189120538,2.71,182.62,182.54,2.82]
[1761189120838,2.71,182.62,182.53,2.07877023]
[1761189120839,2.71,182.62,182.56,2.82]
[1761189121036,2.71,182.62,182.58,2.82]
[1761189121233,2.71,182.62,182.59,4.99993722]
[1761189121437,2.78,182.64,182.6,2.82]
[1761189122033,2.78,182.64,182.54,2.82]
[1761189122336,2.78,182.63,182.56,2.82]
[1761189122535,2.78,182.63,182.57,4.99815973]
[1761189122840,2.78,182.63,182.58,7.81815973]
[1761189123040,2.78,182.63,182.59,4.99815973]
[1761189123237,2.78,182.63,182.6,4.99815973]
[1761189123437,2.78,182.63,182.58,2.82]
[1761189123638,2.78,182.63,182.59,5.00492512]
[1761189123837,2.78,182.63,182.6,5.00492512]
[1761189124040,2.78,182.63,182.58,2.82]
[1761189124235,5.08654122,182.64,182.6,2.82]
[1761189124435,5.08654122,182.66,182.62,2.82]
[1761189124634,5.08654122,182.66,182.56,2.07877023]
[1761189124635,7.86654122,182.65,182.59,2.82]
[1761189124837,2.78,182.64,182.6,7.82383465]
[1761189125137,2.78,182.64,182.61,5.00383465]
[1761189125441,2.78,182.64,182.6,2.82]
[1761189125643,2.78,182.64,182.61,5.00391687]
[1761189125844,2.78,182.64,182.6,2.82]
[1761189126042,2.78,182.64,182.61,5.00391687]
[1761189126239,2.78,182.64,182.61,2.82]
[1761189129444,2.78,182.64,182.57,2.82]
[1761189129646,2.78,182.64,182.58,5.00310729]
[1761189129948,2.78,182.64,182.6,2.82]
[1761189131553,2.78,182.64,182.55,2.82]
[1761189131752,2.78,182.62,182.56,7.82332904]
[1761189131954,2.78,182.62,182.58,2.82]
[1761189134859,2.78,182.62,182.54,2.82]
[1761189135063,7.89996436,182.62,182.55,7.82637752]
[1761189135256,7.89996436,182.62,182.56,5.00637752]
[1761189135457,2.78,182.61,182.57,5.00637752]
[1761189135758,2.78,182.61,182.55,2.82]
[1761189135956,2.78,182.61,182.56,7.82830215]
[1761189136155,2.78,182.61,182.57,7.82830215]
[1761189136357,2.78,182.61,182.58,5.00830215]
[1761189136550,2.78,182.61,182.57,2.82]
[1761189136749,2.78,182.61,182.58,5.00906223]
[1761189136953,2.78,182.61,182.57,2.82]
[1761189137159,2.78,182.61,182.58,5.00906223]
[1761189137357,2.78,182.61,182.57,2.82]
[1761189137556,2.78,182.61,182.58,5.00953871]
[1761189137759,2.78,182.61,182.57,2.82]
[1761189137960,2.78,182.61,182.58,5.00943162]
[1761189138259,2.78,182.61,182.57,2.82]
[1761189138460,2.78,182.61,182.58,5.00964157]
[1761189138660,1.33072282,182.6,182.57,2.82]
[1761189138863,4.11072282,182.6,182.58,5.00898779]
[1761189139069,4.11072282,182.6,182.57,2.82]
[1761189139363,1.33072282,182.6,182.58,5.00937568]
[1761189139666,2.78,182.59,182.53,2.82]
[1761189139865,1.33072282,182.58,182.55,2.82]
[1761189140067,1.33072282,182.58,182.56,7.82980044]
[1761189140256,1.33072282,182.58,182.57,5.00980044]
[1761189140868,1.33072282,182.58,182.57,7.82980044]
[1761189141972,4.11072282,182.58,182.57,5.00980044]
[1761189144771,4.11072282,182.58,182.57,5.01095653]
[1761189145879,2.78,182.58,182.57,5.01095653]
[1761189146269,2.72,182.61,182.58,2.68]
[1761189146468,5.11996436,182.61,182.58,2.68]
[1761189146770,4.05072282,182.6,182.54,2.68]
[1761189146974,2.72,182.59,182.56,2.68]
[1761189147174,2.72,182.59,182.57,5.01003866]
[1761189147476,2.72,182.59,182.58,5.01003866]
[1761189147676,2.72,182.59,182.53,4.01072282]
[1761189147876,2.72,182.59,182.55,2.68]
[1761189148176,2.72,182.59,182.56,7.69082182]
[1761189148474,2.72,182.59,182.57,5.01082182]
[1761189148675,2.72,182.59,182.56,2.68]
[1761189148875,2.72,182.59,182.57,5.01074086]
[1761189149175,2.72,182.59,182.58,5.0107172]
[1761189149375,2.72,182.59,182.58,5.01067688]
[1761189149978,2.72,182.59,182.58,5.01067941]
[1761189150278,2.72,182.59,182.58,5.01087491]
[1761189151377,7.86996436,182.61,182.58,7.94087491]
[1761189151578,2.75,182.61,182.58,2.93]
[1761189153276,2.75,182.6,182.58,2.93]
[1761189158884,2.75,182.6,182.53,1.33072282]
[1761189159074,4.08072282,182.6,182.55,2.93]
[1761189159275,4.08072282,182.6,182.54,5.01574437]
[1761189159276,2.75,182.59,182.56,7.94574437]
[1761189159478,2.75,182.59,182.57,5.01574437]
[1761189159775,2.75,182.59,182.56,2.93]
[1761189159974,2.75,182.59,182.57,5.01643204]
[1761189160177,2.75,182.59,182.56,2.93]
[1761189160484,2.75,182.59,182.57,5.0163032]
[1761189160682,2.75,182.59,182.56,2.93]
[1761189160871,2.75,182.59,182.57,5.01653497]
[1761189161076,2.75,182.59,182.56,2.93]
[1761189161275,2.75,182.59,182.57,5.01653811]
[1761189161476,2.75,182.59,182.56,2.93]
[1761189161672,2.75,182.59,182.57,5.0163713]
[1761189161876,2.75,182.59,182.56,2.93]
[1761189162175,2.75,182.59,182.57,5.0163713]
[1761189162376,2.75,182.59,182.56,2.93]
[1761189162675,2.75,182.59,182.57,5.01622428]
[1761189162878,2.75,182.59,182.56,2.93]
[1761189163183,2.75,182.57,182.53,2.93]
[1761189163403,2.75,182.57,182.54,5.01740872]
[1761189163677,1.33072282,182.56,182.55,5.01740872]
[1761189163881,4.08072282,182.56,182.55,5.01740872]
[1761189164885,4.08072282,182.56,182.5,2.93]
[1761189165084,2.75,182.55,182.52,2.93]
[1761189165285,4.08072282,182.54,182.53,5.01914181]
[1761189165480,4.08072282,182.54,182.49,2.93]
[1761189165680,2.75,182.53,182.5,7.94856973]
[1761189165879,2.75,182.53,182.51,5.01856973]
[1761189166082,2.75,182.53,182.52,5.01856973]
[1761189166785,2.75,182.53,182.45,2.93]
[1761189166973,4.08072282,182.52,182.47,2.93]
[1761189167172,1.33072282,182.52,182.49,2.93]
[1761189167477,4.08072282,182.52,182.5,7.94933082]
[1761189167677,4.08072282,182.52,182.5,2.93]
[1761189170887,4.08072282,182.55,182.52,2.93]
[1761189174386,6.45281113,182.57,182.52,2.93]
[1761189174587,2.75,182.56,182.52,2.93]
[1761189175782,1.33072282,182.57,182.52,2.93]
[1761189176086,4.08072282,182.57,182.54,2.93]
[1761189177386,2.75,182.56,182.54,2.93]
[1761189180888,1.33072282,182.57,182.54,2.93]
[1761189181588,9.21281113,182.59,182.54,2.93]
[1761189182485,4.09072282,182.59,182.54,2.93]
[1761189183085,1.33072282,182.59,182.54,2.93]
[1761189183392,2.76,182.56,182.54,2.93]
[1761189183581,1.33072282,182.55,182.49,2.71]
[1761189183785,1.33072282,182.55,182.51,2.71]
[1761189183986,1.33072282,182.55,182.53,2.71]
[1761189185089,4.09072282,182.57,182.53,2.71]
[1761189185793,1.33072282,182.57,182.53,2.71]
[1761189186292,1.33072282,182.57,182.55,2.71]
[1761189187291,2.76,182.56,182.49,2.71]
[1761189187499,4.09072282,182.55,182.51,2.71]
[1761189187793,4.09072282,182.55,182.52,7.72444956]
[1761189187994,4.09072282,182.55,182.52,2.71]
[1761189188182,2.76,182.54,182.52,2.71]
[1761189188988,1.33072282,182.55,182.52,2.71]
[1761189193493,1.33072282,182.55,182.53,7.72192349]
[1761189193691,1.33072282,182.55,182.53,2.71]
[1761189194798,1.33072282,182.57,182.53,2.71]
[1761189195000,1.33072282,182.57,182.55,2.71]
[1761189195993,7.88208831,182.6,182.55,2.71]
[1761189196302,9.21281113,182.6,182.55,2.71]
[1761189196796,9.21281113,182.6,182.56,7.72119391]
[1761189196797,4.09072282,182.6,182.56,7.72119391]
[1761189196998,4.09072282,182.6,182.57,2.71]
[1761189197897,1.33072282,182.58,182.57,2.71]
[1761189198696,1.33072282,182.6,182.58,2.71]
[1761189199994,5.12208831,182.62,182.58,2.71]
[1761189200191,1.33072282,182.62,182.58,2.71]
[1761189200702,7.20091366,182.64,182.58,2.71]
[1761189201606,9.96091366,182.64,182.58,2.71]
[1761189202504,5.12208831,182.63,182.58,2.71]
[1761189202696,2.76,182.62,182.58,2.71]
[1761189211412,4.77882535,182.61,182.55,2.72]
[1761189211804,2.7,182.6,182.57,2.72]
[1761189219420,7.82208831,182.64,182.57,2.72]
[1761189219619,2.7,182.63,182.59,2.72]
[1761189223328,7.81524168,182.65,182.59,2.72]
[1761189226518,2.7,182.65,182.59,2.72]
[1761189226827,2.7,182.65,182.61,2.72]
[1761189227915,2.7,182.65,182.54,2.72]
[1761189228119,2.7,182.65,182.56,2.72]
[1761189228321,2.7,182.65,182.58,2.72]
[1761189228519,2.7,182.65,182.59,5.005414]
[1761189228723,2.7,182.65,182.58,2.72]
[1761189228926,2.7,182.63,182.59,2.72]
[1761189237338,2.7,182.62,182.59,2.72]
[1761189237728,2.7,182.62,182.53,2.72]
[1761189237931,2.7,182.61,182.55,2.72]
[1761189238132,2.7,182.61,182.57,2.72]
[1761189238333,2.7,182.61,182.58,7.73304099]
[1761189238633,2.7,182.61,182.58,2.72]
[1761189239233,2.7,182.61,182.59,5.01596224]
[1761189239426,2.7,182.61,182.58,2.72]
[1761189239632,2.7,182.61,182.59,5.01596224]
[1761189239836,2.7,182.61,182.59,2.71]
[1761189241231,7.81524168,182.61,182.59,2.71]
[1761189241540,2.7,182.61,182.59,2.71]
[1761189247244,2.7,182.61,182.53,2.71]
[1761189247446,2.7,182.61,182.55,2.71]
[1761189247643,2.7,182.61,182.57,2.71]
[1761189247844,2.7,182.61,182.58,7.72894777]
[1761189248046,2.7,182.61,182.59,5.01894777]
[1761189248250,2.7,182.61,182.58,2.71]
[1761189248452,2.7,182.61,182.59,5.01941763]
[1761189248648,2.7,182.61,182.58,2.71]
[1761189248951,2.7,182.61,182.59,5.01941566]
[1761189249249,2.7,182.61,182.58,2.71]
[1761189249453,2.7,182.61,182.59,5.01941502]
[1761189249650,2.7,182.61,182.58,2.71]
[1761189249852,2.7,182.61,182.59,5.01941896]
[1761189250053,2.7,182.61,182.58,2.71]
[1761189250352,2.7,182.61,182.59,5.01992513]
[1761189250651,2.7,182.61,182.55,2.71]
[1761189250852,2.7,182.61,182.57,2.71]
[1761189251152,2.7,182.61,182.58,7.72992593]
[1761189251353,2.7,182.61,182.59,5.01992593]
[1761189251652,2.7,182.61,182.53,2.71]
[1761189251839,2.78,182.6,182.55,2.71]
[1761189252044,2.78,182.6,182.56,7.72957776]
[1761189252245,2.78,182.6,182.57,5.01957776]
[1761189252548,2.78,182.6,182.58,5.01957776]
[1761189252748,2.78,182.59,182.56,2.71]
[1761189252951,2.78,182.59,182.57,5.02094341]
[1761189253253,2.78,182.59,182.56,2.71]
[1761189253444,2.78,182.59,182.57,5.02046578]
[1761189253646,2.78,182.59,182.56,2.71]
[1761189253847,2.78,182.59,182.57,5.02046795]
[1761189254046,2.78,182.59,182.56,2.71]
[1761189254348,2.78,182.59,182.57,7.730384]
[1761189254549,2.78,182.59,182.58,5.020384]
[1761189254952,7.89524168,182.6,182.58,7.730384]
[1761189255148,7.89524168,182.6,182.51,2.71]
[1761189255353,7.89524168,182.6,182.53,2.71]
[1761189255555,2.78,182.59,182.54,7.72942179]
[1761189255850,2.78,182.59,182.55,7.72942179]
[1761189256042,2.78,182.59,182.56,7.72942179]
[1761189256246,2.78,182.59,182.57,5.01942179]
[1761189256449,2.78,182.59,182.56,2.71]
[1761189256646,2.78,182.59,182.57,5.0186508]
[1761189256942,2.78,182.59,182.56,2.71]
[1761189257141,2.78,182.59,182.57,5.01927098]
[1761189257344,2.78,182.59,182.56,2.71]
[1761189257555,2.78,182.59,182.57,5.01894747]
[1761189257751,2.78,182.59,182.56,2.71]
[1761189257952,2.78,182.59,182.57,5.01894747]
[1761189258147,5.11524168,182.6,182.56,2.71]
[1761189258351,2.78,182.6,182.58,2.71]
[1761189262763,1.33079543,182.59,182.58,2.71]
[1761189262962,1.33079543,182.59,182.58,7.72849623]
[1761189265665,2.78,182.6,182.58,7.72849623]
[1761189265865,2.78,182.6,182.58,2.71]
[1761189266966,9.17603711,182.61,182.58,2.71]
[1761189267763,6.44603711,182.61,182.58,2.71]
[1761189267972,1.33079543,182.61,182.6,2.91]
[1761189269373,9.41603711,182.63,182.61,2.93]
[1761189269668,2.97,182.62,182.58,2.93]
[1761189269871,2.97,182.62,182.6,2.93]
[1761189270072,6.44603711,182.63,182.6,2.93]
[1761189270366,9.41603711,182.63,182.6,2.93]
[1761189271168,6.44603711,182.63,182.6,2.93]
[1761189271573,9.41603711,182.63,182.6,2.93]
[1761189274169,6.44603711,182.63,182.6,2.93]
[1761189274375,2.97,182.62,182.6,2.93]
[1761189276173,2.97,182.62,182.56,2.93]
[1761189276374,2.97,182.62,182.58,2.93]
[1761189276572,2.97,182.62,182.59,7.9489987]
[1761189276773,2.97,182.62,182.6,5.0189987]
[1761189276973,2.97,182.62,182.59,2.93]
[1761189277179,2.97,182.62,182.6,5.0188841]
[1761189277474,2.97,182.62,182.59,2.93]
[1761189277676,2.97,182.62,182.6,7.94898216]
[1761189277876,6.44603711,182.63,182.54,2.93]
[1761189277877,2.97,182.6,182.54,2.93]
[1761189278076,2.97,182.59,182.56,2.93]
[1761189278276,2.97,182.59,182.57,7.95041434]
[1761189278486,5.11524168,182.6,182.58,7.95041434]
[1761189278776,5.11524168,182.6,182.58,2.93]
[1761189278777,8.08524168,182.6,182.58,2.93]